bitfinex/quotes_SOLUSD_20250326
["timestamp","ask_amount","ask_price","bid_price","bid_amount"]
[1742960974212,0.03,141.92,141.91,15.73569601]
[1742960974400,0.03,141.92,141.91,7.0467]
[1742960980812,0.03,141.92,141.91,34.38534487]
[1742960982687,0.03,141.92,141.91,107.71435085]
[1742960986912,0.03,141.92,141.91,107.99867399]
[1742960987107,0.03,141.92,141.91,107.71435085]
[1742960992318,0.03,141.92,141.91,107.99867399]
[1742960992520,0.0001,141.92,141.91,109.87649713]
[1742960992704,0.0001,141.92,141.91,111.28500023]
[1742960992899,0.0001,141.93,141.92,18.933972]
[1742960993101,0.0001,141.93,141.92,101.23629713]
[1742960993313,0.0001,141.93,141.92,108.28249713]
[1742961000326,0.0001,141.93,141.92,109.69095064]
[1742961001429,0.0001,141.93,141.92,144.44693468]
[1742961001626,0.0001,141.93,141.92,143.03848117]
[1742961001831,0.03,142.0,141.97,8.68899601]
[1742961002032,0.03,142.0,141.98,7.0432]
[1742961002916,0.03,142.0,141.97,15.73249601]
[1742961003113,15.0501,142.03,141.96,91.97865484]
[1742961003313,8.68899601,142.0,141.95,14.80899601]
[1742961003514,8.68899601,141.99,141.94,15.73399601]
[1742961005034,16.79809601,141.98,141.93,34.38414487]
[1742961005213,16.79809601,141.98,141.93,15.73449601]
[1742961005524,8.1091,141.98,141.92,80.37500598]
[1742961005729,8.68899601,141.97,141.92,89.06400199]
[1742961005941,8.1091,141.98,141.94,8.68899601]
[1742961006113,6.4744,141.98,141.95,8.68899601]
[1742961006734,6.4744,141.98,141.94,15.73419601]
[1742961006912,1.6347,142.01,141.97,8.68899601]
[1742961007114,6.4744,142.02,142.0,8.68899601]
[1742961007320,1.6347,142.05,142.01,8.68899601]
[1742961007518,1.6347,142.05,142.0,14.80899601]
[1742961007519,10.32369601,142.05,142.0,14.80899601]
[1742961008230,8.68899601,142.04,142.0,13.1617]
[1742961008402,8.68899601,142.01,141.97,73.32900598]
[1742961008609,8.68899601,142.01,141.96,8.68899601]
[1742961008610,8.68899601,141.99,141.95,7.0445]
[1742961008808,8.68899601,141.98,141.94,73.32900598]
[1742961009331,8.68899601,141.99,141.94,73.32900598]
[1742961009531,8.68899601,141.98,141.94,73.32900598]
[1742961009711,8.68899601,141.98,141.94,80.37400598]
[1742961010114,8.68899601,141.99,141.94,80.37400598]
[1742961010522,8.68899601,141.99,141.94,73.32900598]
[1742961010523,8.68899601,141.98,141.94,73.32900598]
[1742961010809,8.68899601,141.96,141.92,13.1662]
[1742961012139,8.68899601,141.98,141.93,18.64964886]
[1742961012333,8.68899601,141.99,141.93,100.66765085]
[1742961012527,8.68899601,141.99,141.94,8.68899601]
[1742961013113,8.68899601,141.98,141.93,100.66765085]
[1742961013335,8.68899601,141.98,141.93,73.32900598]
[1742961013513,8.68899601,141.97,141.93,73.32900598]
[1742961013931,8.68899601,141.97,141.94,7.0452]
[1742961014124,8.68899601,141.98,141.94,7.0452]
[1742961014435,1.6347,142.0,141.94,15.73419601]
[1742961014615,10.32369601,142.0,141.94,15.73419601]
[1742961016310,10.35369601,142.0,141.94,15.73419601]
[1742961020639,8.68899601,141.99,141.94,15.73419601]
[1742961022136,8.7071,142.0,141.93,80.37450598]
[1742961022319,8.68899601,141.98,141.93,80.37450598]
[1742961022516,8.68899601,141.98,141.93,89.06350199]
[1742961023549,8.68899601,141.98,141.93,80.37450598]
[1742961023847,8.68899601,141.99,141.93,89.06350199]
[1742961024351,8.68899601,141.99,141.94,8.68899601]
[1742961025051,8.68899601,141.99,141.95,7.0447]
[1742961025247,10.35369601,142.0,141.95,7.0447]
[1742961027764,10.35369601,142.0,141.95,15.73369601]
[1742961028062,10.35369601,142.0,141.95,7.0447]
[1742961029950,1.6647,142.0,141.96,18.64964886]
[1742961030149,10.35369601,142.0,141.96,18.64964886]
[1742961030352,10.35369601,142.0,141.95,7.0447]
[1742961033332,1.6647,142.0,141.95,7.0447]
[1742961033538,0.03,142.0,141.99,27.33864487]
[1742961033752,0.03,142.0,141.99,100.66765085]
[1742961035460,0.03,142.0,141.99,107.71035085]
[1742961035953,0.03,142.0,141.99,108.27899713]
[1742961035954,0.0001,142.0,141.99,108.27899713]
[1742961036155,0.03,142.06,142.04,18.64964886]
[1742961036354,0.03,142.06,142.05,27.33864487]
[1742961036557,0.03,142.06,142.05,28.74606464]
[1742961037353,0.03,142.06,142.05,35.78576464]
[1742961037761,0.03,142.06,142.05,34.37834487]
[1742961039054,0.03,142.06,142.05,35.78572319]
[1742961039285,0.03,142.06,142.05,36.35436947]
[1742961039494,0.03,142.06,142.05,109.39905231]
[1742961045789,0.0001,142.06,142.05,109.68337545]
[1742961046184,0.0001,142.07,142.06,18.933972]
[1742961046387,0.0001,142.07,142.06,27.62296801]
[1742961046679,0.0001,142.07,142.06,27.90729115]
[1742961047299,0.03,142.08,142.06,27.90729115]
[1742961047484,0.03,142.08,142.07,35.14996026]
[1742961047679,0.03,142.08,142.07,115.51766624]
[1742961048493,0.03,142.1,142.08,18.64964886]
[1742961048696,0.03,142.1,142.09,29.02985755]
[1742961049294,0.03,142.1,142.09,18.64964886]
[1742961049783,0.03,142.1,142.07,88.13800199]
[1742961050096,0.03,142.1,142.07,79.44900598]
[1742961050299,0.03,142.1,142.07,88.13800199]
[1742961050923,0.03,142.1,142.08,7.0381]
[1742961054582,0.03,142.1,142.02,7.0412]
[1742961054583,8.68899601,142.09,142.02,7.0412]
[1742961054783,8.68899601,142.04,142.02,7.0412]
[1742961055190,1.6415,142.09,142.02,7.0412]
[1742961055410,1.6415,142.09,142.02,15.73019601]
[1742961055411,8.68899601,142.08,142.02,15.73019601]
[1742961055612,8.68899601,142.08,142.03,18.64964886]
[1742961056513,8.68899601,142.07,142.04,7.0402]
[1742961056901,8.68899601,142.06,142.04,7.0402]
[1742961057412,8.68899601,142.06,142.02,7.0412]
[1742961057614,8.68899601,142.06,142.01,82.01800199]
[1742961057615,8.68899601,142.05,142.01,80.37050598]
[1742961057803,8.68899601,142.04,142.01,80.37050598]
[1742961058333,8.68899601,142.03,142.01,73.32900598]
[1742961058501,6.331,142.08,141.99,7.0427]
[1742961058502,8.68899601,142.02,141.99,7.0427]
[1742961058698,8.68899601,142.01,141.99,7.0427]
[1742961059096,10.33049601,142.03,141.99,7.0427]
[1742961059912,1.6415,142.07,142.01,8.68899601]
[1742961060114,8.68899601,142.05,142.0,91.97865484]
[1742961060422,1.6415,142.07,142.0,73.32900598]
[1742961060423,8.68899601,142.02,142.0,73.32900598]
[1742961060592,8.68899601,142.02,141.98,7.0432]
[1742961061614,15.01999601,142.01,141.98,7.0432]
[1742961062516,8.68899601,141.99,141.97,73.32900598]
[1742961062691,8.68899601,141.99,141.95,7.0447]
[1742961062894,1.6415,142.0,141.95,38.22357797]
[1742961062895,15.20857797,142.0,141.95,38.22357797]
[1742961063311,15.20857797,142.0,141.97,0.063]
[1742961065517,13.56707797,141.99,141.97,0.063]
[1742961065896,15.20857797,142.0,141.97,0.063]
[1742961066711,19.89807797,142.01,141.97,0.063]
[1742961067019,6.331,142.01,141.97,0.063]
[1742961067213,13.56707797,142.02,141.97,0.063]
[1742961067214,6.331,142.05,142.0,13.56707797]
[1742961067414,13.56707797,142.02,141.99,7.0426]
[1742961068520,13.56707797,142.01,141.98,86.49220598]
[1742961068712,13.56707797,142.01,141.98,80.37220598]
[1742961068913,13.56707797,142.0,141.98,80.37220598]
[1742961069111,13.56707797,142.0,141.97,0.063]
[1742961069112,13.56707797,141.99,141.97,0.063]
[1742961069500,13.56707797,142.0,141.97,0.063]
[1742961070507,13.56707797,141.99,141.97,0.063]
[1742961070709,13.56707797,141.98,141.97,0.063]
[1742961072921,19.59137797,141.99,141.97,0.063]
[1742961074017,13.56707797,141.99,141.97,0.063]
[1742961074402,13.56707797,142.0,141.97,0.063]
[1742961074598,15.20857797,142.01,141.97,0.063]
[1742961075712,13.56707797,142.0,141.97,0.063]
[1742961075920,15.20857797,142.01,141.97,0.063]
[1742961077723,13.56707797,142.0,141.97,0.063]
[1742961078024,13.56707797,141.99,141.97,0.063]
[1742961078527,13.56707797,141.98,141.97,0.063]
[1742961079029,13.56707797,141.99,141.97,0.063]
[1742961079932,13.56707797,142.0,141.97,0.063]
[1742961080408,13.56707797,141.99,141.97,0.063]
[1742961082330,13.56707797,141.98,141.97,0.063]
[1742961082521,1.6415,142.01,141.97,0.063]
[1742961082727,13.56707797,141.98,141.97,0.063]
[1742961082925,8.68404523,141.98,141.97,0.063]
[1742961086132,13.1624,142.0,141.97,0.063]
[1742961086133,8.68404523,141.99,141.97,0.063]
[1742961090627,8.68404523,141.98,141.97,0.063]
[1742961096057,6.12,142.0,141.97,0.063]
[1742961096058,8.68404523,141.99,141.97,0.063]
[1742961097448,8.68404523,141.98,141.97,0.063]
[1742961098959,8.68404523,141.99,141.97,0.063]
[1742961101735,8.68404523,142.0,141.97,0.063]
[1742961102355,8.68404523,141.99,141.97,0.063]
[1742961106856,8.68404523,141.98,141.97,0.063]
[1742961113371,8.68404523,141.98,141.94,0.063]
[1742961113372,20.0,141.95,141.94,0.063]
[1742961113665,28.96836837,141.95,141.94,0.063]
[1742961115445,28.68404523,141.95,141.94,0.063]
[1742961116964,8.68404523,141.95,141.94,0.063]
[1742961120449,8.68404523,141.96,141.94,0.063]
[1742961120954,8.68404523,141.97,141.94,0.063]
[1742961122264,8.68404523,141.96,141.94,0.063]
[1742961122669,8.68404523,141.95,141.94,0.063]
[1742961124466,15.72874523,141.95,141.94,0.063]
[1742961128483,16.01306837,141.95,141.94,0.063]
[1742961129974,8.68404523,141.95,141.94,0.063]
[1742961132292,8.6196,142.0,141.94,0.063]
[1742961132593,8.68404523,141.98,141.94,0.063]
[1742961134665,8.68404523,141.97,141.94,0.063]
[1742961135558,8.68404523,141.98,141.94,0.063]
[1742961138060,0.03,142.0,141.95,8.68404523]
[1742961138260,0.03,142.0,141.96,8.68404523]
[1742961139195,0.03,142.0,141.97,7.0437]
[1742961140393,8.71404523,142.0,141.97,7.0437]
[1742961141187,8.71404523,142.0,141.96,7.0442]
[1742961143588,0.03,142.0,141.96,7.0442]
[1742961144488,8.71404523,142.0,141.96,7.0442]
[1742961145686,0.03,142.0,141.96,15.72824523]
[1742961146393,0.03,142.0,141.97,8.68404523]
[1742961147388,0.03,142.0,141.99,8.68404523]
[1742961147980,0.03,142.0,141.99,15.72674523]
[1742961148370,0.03,142.0,141.99,107.70540007]
[1742961150392,0.03,142.0,141.99,80.37170598]
[1742961151294,8.71404523,142.0,141.95,94.59264708]
[1742961151595,8.71404523,142.0,141.95,11.05969587]
[1742961151596,8.68404523,141.97,141.95,11.05969587]
[1742961151773,8.68404523,141.96,141.95,11.05969587]
[1742961152387,15.72824523,141.96,141.95,11.05969587]
[1742961152695,15.72824523,141.96,141.94,0.063]
[1742961152890,8.68404523,141.95,141.94,0.063]
[1742961155002,13.57736094,141.95,141.94,0.063]
[1742961155885,13.57736094,141.96,141.94,0.063]
[1742961156286,13.57736094,141.95,141.94,0.063]
[1742961169311,19.91776094,141.96,141.94,0.063]
[1742961170417,13.57736094,141.95,141.94,0.063]
[1742961176721,13.57736094,141.96,141.94,0.063]
[1742961176924,8.68643378,141.97,141.94,0.063]
[1742961178924,8.68643378,141.96,141.94,0.063]
[1742961180198,8.68643378,141.97,141.94,0.063]
[1742961181024,8.68643378,141.95,141.94,0.063]
[1742961181703,8.68643378,141.96,141.94,0.063]
[1742961182508,8.68643378,141.95,141.94,0.063]
[1742961183396,15.54585692,141.95,141.94,0.063]
[1742961184132,22.59055692,141.95,141.94,0.063]
[1742961186133,20.28432314,141.92,141.91,0.063]
[1742961186311,28.97075692,141.92,141.91,0.063]
[1742961186911,28.68643378,141.92,141.91,0.063]
[1742961187625,88.2751,141.95,141.91,0.063]
[1742961187796,8.68643378,141.93,141.91,0.063]
[1742961189537,6.5751,141.95,141.91,0.063]
[1742961189917,8.68643378,141.93,141.91,0.063]
[1742961190110,8.68643378,141.95,141.91,0.063]
[1742961191316,6.5751,141.98,141.92,8.68643378]
[1742961191638,8.68643378,141.96,141.91,8.74943378]
[1742961193244,8.68643378,141.96,141.92,7.0462]
[1742961193632,8.68643378,141.95,141.92,7.0462]
[1742961194331,8.68643378,141.96,141.92,7.0462]
[1742961194743,6.5751,141.98,141.92,7.0462]
[1742961195054,8.68643378,141.97,141.92,15.73263378]
[1742961195247,8.68643378,141.96,141.92,7.0462]
[1742961195558,8.68643378,141.95,141.91,0.063]
[1742961197063,8.68643378,141.95,141.91,7.1096]
[1742961199155,8.68643378,141.92,141.91,0.063]
[1742961200742,8.97075692,141.92,141.91,0.063]
[1742961202264,8.68643378,141.92,141.91,0.063]
[1742961207346,8.68643378,141.94,141.91,0.063]
[1742961207750,19.94396157,141.97,141.91,0.063]
[1742961207937,8.68643378,141.94,141.91,0.063]
[1742961208671,8.68643378,141.93,141.91,0.063]
[1742961208840,8.68643378,141.94,141.91,0.063]
[1742961211464,8.68643378,141.92,141.91,0.063]
[1742961213852,8.68643378,141.93,141.91,0.063]
[1742961215951,8.68643378,141.94,141.91,0.063]
[1742961216472,8.68643378,141.95,141.91,0.063]
[1742961216649,0.03,141.97,141.93,8.68643378]
[1742961216844,0.03,141.97,141.96,8.68643378]
[1742961217040,588.03,142.0,141.99,20.0]
[1742961217239,588.03,142.0,141.99,120.66508862]
[1742961217465,588.03,142.0,141.99,73.32900598]
[1742961219539,588.03,142.0,141.99,89.05813976]
[1742961219946,588.03,142.0,141.99,107.70778862]
[1742961223744,588.03,142.0,141.99,73.32900598]
[1742961224347,588.03,142.0,141.99,80.37170598]
[1742961224667,588.03,142.0,141.99,73.32900598]
[1742961225049,588.03,142.0,141.99,80.37170598]
[1742961225249,588.03,142.0,141.99,89.05813976]
[1742961226971,588.03,142.0,141.99,107.70778862]
[1742961229476,588.03,142.0,141.99,108.2764349]
[1742961232480,588.03,142.0,141.99,114.3964349]
[1742961233365,588.03,142.0,141.99,114.11211176]
[1742961233862,588.03,142.0,141.99,113.82778862]
[1742961236658,588.03,142.0,141.99,73.32900598]
[1742961236975,596.71643378,142.0,141.97,0.063]
[1742961238054,588.03,142.0,141.97,0.063]
[1742961238863,601.59512513,142.0,141.97,0.063]
[1742961240068,588.03,142.0,141.97,0.063]
[1742961240578,588.03,142.0,141.97,13.62812513]
[1742961241373,588.03,142.0,141.97,0.063]
[1742961242060,588.03,142.0,141.97,38.28112513]
[1742961244375,588.03,142.0,141.97,20.67182513]
[1742961246783,588.03,142.0,141.99,40.60782513]
[1742961247971,588.03,142.0,141.98,7.0432]
[1742961248772,588.03,142.0,141.97,7.1067]
[1742961248981,20.09382513,141.99,141.97,0.063]
[1742961249288,13.56512513,141.98,141.97,0.063]
[1742961250384,20.09382513,141.99,141.97,0.063]
[1742961254880,6.5287,141.99,141.97,0.063]
[1742961255487,20.09382513,141.99,141.97,0.063]
[1742961256994,13.56512513,141.98,141.97,0.063]
[1742961258880,8.68628881,141.98,141.97,0.063]
[1742961259500,8.97061195,141.98,141.97,0.063]
[1742961259691,10.58341195,141.98,141.97,0.063]
[1742961259889,29.23306081,141.98,141.97,0.063]
[1742961260499,36.27626081,141.98,141.97,0.063]
[1742961261183,10.58341195,141.98,141.97,0.063]
[1742961264218,10.29908881,141.98,141.97,0.063]
[1742961264591,1.6128,141.98,141.97,0.063]
[1742961265098,10.29908881,141.98,141.97,0.063]
[1742961265997,10.58341195,141.98,141.97,0.063]
[1742961266197,36.27626081,141.98,141.97,0.063]
[1742961266712,8.68628881,141.93,141.91,0.063]
[1742961267114,8.68628881,141.94,141.91,0.063]
[1742961269305,8.68628881,141.93,141.91,0.063]
[1742961269506,8.68628881,141.92,141.91,0.063]
[1742961269704,8.68628881,141.93,141.91,0.063]
[1742961272616,8.68628881,141.94,141.91,0.063]
[1742961276304,8.68628881,141.96,141.91,0.063]
[1742961278917,8.68628881,141.96,141.91,7.1097]
[1742961279120,8.94072314,141.98,141.92,8.68628881]
[1742961279121,8.68628881,141.97,141.92,8.68628881]
[1742961279724,8.68628881,141.97,141.91,33.41268881]
[1742961279725,8.68628881,141.96,141.91,33.41268881]
[1742961280021,8.71628881,141.97,141.91,33.41268881]
[1742961284030,8.68628881,141.96,141.91,33.41268881]
[1742961284722,0.03,141.97,141.92,8.68628881]
[1742961285729,0.03,141.97,141.93,7.0457]
[1742961289125,0.03,141.97,141.93,15.73198881]
[1742961289514,0.03,141.97,141.93,7.0457]
[1742961290411,0.03,141.97,141.93,15.73198881]
[1742961291610,0.03,141.97,141.92,8.68628881]
[1742961293937,0.03,141.97,141.93,7.0457]
[1742961294635,0.03,141.97,141.93,33.34628881]
[1742961297029,0.03,141.97,141.94,8.68628881]
[1742961297926,0.03,141.97,141.93,33.34628881]
[1742961300139,0.03,141.97,141.93,106.67529479]
[1742961301033,0.03,141.97,141.95,7.0447]
[1742961301438,0.03,141.97,141.95,15.73098881]
[1742961301643,0.03,141.97,141.96,8.68628881]
[1742961302138,587.56,142.0,141.96,8.68628881]
[1742961303338,587.56,142.0,141.97,7.0437]
[1742961309046,587.56,142.0,141.97,24.653]
[1742961309944,587.56,142.0,141.97,17.6093]
[1742961310153,15.34608881,141.98,141.94,7.045]
[1742961310337,8.68628881,141.96,141.94,7.045]
[1742961310731,8.68628881,141.97,141.94,7.045]
[1742961311360,8.68628881,141.97,141.93,7.1087]
[1742961311658,15.34608881,141.98,141.93,7.1087]
[1742961312955,15.34608881,141.98,141.93,33.40928881]
[1742961313338,8.68628881,141.97,141.93,7.1087]
[1742961313538,8.68628881,141.96,141.93,7.1087]
[1742961315550,8.68628881,141.95,141.93,7.1087]
[1742961316049,8.68628881,141.94,141.93,0.063]
[1742961317054,8.68628881,141.94,141.9,6.7358]
[1742961317353,8.68628881,141.95,141.9,15.42208881]
[1742961317554,8.68628881,141.96,141.9,33.04008881]
[1742961318134,8.68628881,141.95,141.9,33.04008881]
[1742961318756,8.68628881,141.96,141.9,33.04008881]
[1742961319153,8.68628881,141.97,141.91,8.68628881]
[1742961319357,8.68628881,141.97,141.92,8.68628881]
[1742961319755,8.68628881,141.97,141.91,8.68628881]
[1742961320146,8.68628881,141.96,141.92,7.0462]
[1742961322456,8.68628881,141.97,141.92,7.0462]
[1742961322664,8.68628881,141.97,141.92,24.6617]
[1742961323552,15.34608881,141.98,141.92,33.34798881]
[1742961324264,6.6598,141.98,141.93,27.33593767]
[1742961324454,8.68628881,141.99,141.94,8.68628881]
[1742961324654,596.27628881,142.0,141.95,7.0447]
[1742961325761,8.68628881,141.99,141.95,7.0447]
[1742961326667,8.68628881,141.99,141.94,17.6126]
[1742961326871,8.68628881,141.99,141.94,24.6578]
[1742961330165,8.68628881,141.98,141.94,24.6578]
[1742961330361,8.68628881,141.98,141.94,7.0452]
[1742961331458,8.68628881,141.97,141.93,7.0457]
[1742961331969,8.68628881,141.95,141.93,7.0457]
[1742961332180,8.68628881,141.94,141.9,11.12269587]
[1742961332383,6.5984,141.97,141.9,11.12269587]
[1742961332384,8.68628881,141.95,141.9,11.12269587]
[1742961333174,8.68628881,141.95,141.91,7.0467]
[1742961335572,8.68628881,141.95,141.9,7.1102]
[1742961335759,8.68628881,141.94,141.9,7.1102]
[1742961338080,8.68628881,141.93,141.9,7.1102]
[1742961339385,8.68628881,141.93,141.9,0.063]
[1742961342185,8.68628881,141.92,141.9,0.063]
[1742961344390,8.68628881,141.93,141.9,0.063]
[1742961345672,8.68628881,141.94,141.9,0.063]
[1742961345982,8.68628881,141.93,141.9,0.063]
[1742961347168,8.68628881,141.91,141.9,0.063]
[1742961351564,8.97061195,141.91,141.9,0.063]
[1742961351769,34.66696081,141.91,141.9,0.063]
[1742961352170,8.97061195,141.91,141.9,0.063]
[1742961352502,16.01731195,141.91,141.9,0.063]
[1742961353390,8.97061195,141.91,141.9,0.063]
[1742961358368,16.01731195,141.91,141.9,0.063]
[1742961360289,34.66696081,141.91,141.9,0.063]
[1742961362396,8.97061195,141.91,141.9,0.063]
[1742961364396,16.01731195,141.91,141.9,0.063]
[1742961364797,8.97061195,141.91,141.9,0.063]
[1742961366896,16.01731195,141.91,141.9,0.063]
[1742961375583,8.97061195,141.91,141.9,0.063]
[1742961376599,8.68628881,141.91,141.9,0.063]
[1742961377598,8.71628881,141.91,141.9,0.063]
[1742961385489,15.76298881,141.91,141.9,0.063]
[1742961387007,8.71628881,141.91,141.9,0.063]
[1742961387211,0.03,141.91,141.9,0.063]
[1742961398821,0.03,141.91,141.9,34.44613767]
[1742961399013,0.03,141.91,141.9,114.44378993]
[1742961399207,0.03,141.91,141.9,122.41958993]
[1742961399400,0.03,141.93,141.92,20.28432314]
[1742961399601,0.03,141.93,141.92,28.97061195]
[1742961400214,0.03,141.93,141.92,128.44569501]
[1742961400411,0.03,141.98,141.94,0.28432314]
[1742961400614,0.03,141.98,141.95,14.78628881]
[1742961400806,0.03,141.98,141.96,7.0442]
[1742961401005,0.03,141.98,141.97,27.90458395]
[1742961401208,0.03,141.98,141.97,102.82318993]
[1742961401805,587.59,142.0,141.99,20.0]
[1742961402115,587.59,142.0,141.99,47.90458395]
[1742961403020,462.3478,142.0,141.99,128.27628993]
[1742961403210,417.2402,142.0,141.99,128.87698993]
[1742961403405,332.1013,142.0,141.99,128.87698993]
[1742961403615,248.8961,142.0,141.99,129.37698993]
[1742961403812,134.28709402,142.0,141.99,193.44798395]
[1742961404010,5.66837602,142.0,141.99,193.44798395]
[1742961404313,0.03,142.06,142.04,18.933972]
[1742961404514,0.03,142.06,142.05,33.74026081]
[1742961404720,0.03,142.06,142.05,115.74026081]
[1742961404918,0.03,142.06,142.05,122.77996081]
[1742961405320,0.03,142.06,142.05,123.06428395]
[1742961405517,0.03,142.06,142.05,123.66618395]
[1742961406115,0.03,142.06,142.05,117.54618395]
[1742961406328,0.03,142.06,142.05,123.68618395]
[1742961407625,0.03,142.06,142.02,82.0]
[1742961407820,0.03,142.06,142.03,8.68628881]
[1742961408025,0.03,142.06,142.04,27.33593767]
[1742961408416,0.03,142.06,142.05,8.97061195]
[1742961408617,0.03,142.06,142.05,116.08458395]
[1742961409526,0.03,142.06,142.05,123.12428395]
[1742961409724,0.03,142.06,142.05,115.80026081]
[1742961410039,0.03,142.06,142.05,107.113972]
[1742961410327,0.03,142.06,142.05,115.80026081]
[1742961411233,0.03,142.06,142.05,123.12428395]
[1742961411432,0.03,142.06,142.05,124.53171539]
[1742961412830,0.03,142.06,142.05,118.35171539]
[1742961413033,0.03,142.06,142.05,124.59171539]
[1742961414729,0.03,142.06,142.05,124.30739225]
[1742961414935,0.03,142.06,142.05,123.18428395]
[1742961415944,8.71628881,142.06,142.02,82.0]
[1742961416943,13.55561305,142.05,142.02,89.0412]
[1742961419337,13.55561305,142.05,142.02,82.0]
[1742961419539,13.55561305,142.05,142.02,89.0411]
[1742961419742,0.03,142.06,142.02,89.0411]
[1742961419939,13.55561305,142.05,142.02,82.0]
[1742961420137,13.05561305,142.05,142.02,82.0]
[1742961420461,13.55561305,142.04,142.02,82.0]
[1742961421157,13.55561305,142.03,142.02,82.0]
[1742961421948,13.55561305,142.04,142.02,82.0]
[1742961422760,13.55561305,142.03,142.02,82.0]
[1742961423968,13.55561305,142.03,141.98,18.64964886]
[1742961424133,13.55561305,142.0,141.98,20.0]
[1742961424336,6.1611,142.03,141.98,20.0]
[1742961424554,13.55561305,142.01,141.98,20.0]
[1742961425460,13.55561305,142.04,141.99,32.20526191]
[1742961425660,13.55561305,142.04,142.0,7.0422]
[1742961426241,13.55561305,142.03,142.0,7.0422]
[1742961426558,13.55561305,142.02,141.99,25.69214886]
[1742961426759,13.55561305,142.01,141.99,7.0425]
[1742961426936,13.55561305,142.01,141.98,27.0431]
[1742961427134,13.55561305,142.0,141.98,27.0431]
[1742961427855,13.55561305,142.0,141.97,25.69314886]
[1742961428032,13.55561305,141.99,141.96,24.92964886]
[1742961428225,13.55561305,141.99,141.96,31.97364886]
[1742961429348,13.55561305,141.99,141.96,13.324]
[1742961429528,13.55561305,141.98,141.96,13.324]
[1742961429945,13.55561305,141.98,141.96,7.044]
[1742961430624,13.55561305,141.97,141.96,7.044]
[1742961430824,13.55561305,141.98,141.96,7.044]
[1742961431447,13.55561305,141.97,141.96,7.044]
[1742961431628,13.55561305,141.97,141.95,89.0445]
[1742961431831,13.55561305,141.97,141.93,17.75636157]
[1742961431832,13.55561305,141.96,141.93,7.0457]
[1742961432029,13.55561305,141.95,141.93,7.0457]
[1742961432342,15.08851305,141.95,141.92,89.0461]
[1742961432524,13.55561305,141.97,141.93,18.64964886]
[1742961433771,13.55561305,141.97,141.94,7.0452]
[1742961434528,13.55561305,141.97,141.94,24.6582]
[1742961434759,13.55561305,141.98,141.94,24.6582]
[1742961434958,13.55561305,141.98,141.94,30.9382]
[1742961436242,13.55561305,141.97,141.94,30.9382]
[1742961437147,13.55561305,141.97,141.94,31.0012]
[1742961438868,15.08851305,141.99,141.94,31.0012]
[1742961439476,13.55561305,141.98,141.94,31.0012]
[1742961440370,1.5329,141.99,141.95,32.20526191]
[1742961441079,1.5329,141.99,141.96,24.6547]
[1742961441747,19.65931305,142.01,141.97,18.64964886]
[1742961442173,13.55561305,142.0,141.97,18.64964886]
[1742961442373,13.55561305,142.0,141.96,106.6547]
[1742961445480,13.55561305,142.0,141.97,18.64964886]
[1742961445787,19.65931305,142.01,141.97,18.64964886]
[1742961446459,19.65931305,142.01,141.98,7.0432]
[1742961447248,1.5329,142.02,141.98,7.0432]
[1742961447249,15.08851305,142.02,141.98,7.0432]
[1742961447752,13.55561305,142.03,141.99,24.90964886]
[1742961448462,13.55561305,142.03,142.0,7.0422]
[1742961448873,8.67865786,142.02,142.0,7.0422]
[1742961450655,6.3943,142.05,142.0,7.0422]
[1742961450656,8.67865786,142.03,142.0,7.0422]
[1742961450858,8.67865786,142.03,142.0,24.6478]
[1742961451371,6.3943,142.05,142.0,24.6478]
[1742961451573,8.67865786,142.03,142.0,24.6478]
[1742961452069,6.3943,142.05,142.01,18.64964886]
[1742961452272,0.03,142.05,142.01,109.32830672]
[1742961452457,0.03,142.05,142.02,7.0412]
[1742961452772,8.70865786,142.05,142.02,7.0412]
[1742961456683,8.70865786,142.05,142.02,24.6443]
[1742961457857,0.03,142.05,142.03,18.64964886]
[1742961458251,0.03,142.05,142.02,115.32295786]